{"text_format":"1","workbook":"xlsx","n_sheets":4,"sheets":["CLASSIFICAÇÃO","jan2026","fev2026","mar2026"],"not_rendered":{"charts":0,"images":2,"macros":1,"external_links":0,"defined_names":1,"comments":0,"pivot_tables":0},"unopened":[],"bounds":{"document_bytes":16777216,"sheet_cells":100000,"rows_first":2000,"rows_last":500,"rows_between":2000,"halvings":0,"cell_chars":16384,"cell_head_chars":4096},"cells_cut":0,"cells_raw":0,"read":"whole","date_system":"1900"}

{"sheet":"CLASSIFICAÇÃO","index":0,"n_rows":103,"n_cols":5,"rows_kept":103,"cut":false,"hidden":false,"merged":[[0,0,0,4],[1,0,1,4]]}
["CLASSIFICAÇÃO GERAL ACPA – TEMPORADA DE VERÃO 2026 QUARTA"]
["COLEIRO FIBRA","Pássaro","Proprietário","Origem","Pontos"]
["POSIÇÃO","NOME DO PÁSSARO","NOME DO PROPRIETÁRIO","ORIGEM (CIDADE)","PONTUAÇÃO"]
["1º","PANTERA NEGRA","PABLO","ITAIPAVA",{"$f":"22+22+24+17+23+20+24+22+24+21+22","v":241}]
["2º","ROMÁRIO","CH FAMÍLIA MINGAL","PARAÍBA DO SUL",{"$f":"19+24+26+16+18+24+16+15+17+23","v":198}]
["3º","É O AÇO","RODRIGO","VASSOURAS",{"$f":"30+30+30+30+30+22","v":172}]
["4º","FOGUETE","LEANDRO/GABRIEL","PARAÍBA DO SUL",{"$f":"26+17+23+26+21+23+21+14","v":171}]
["5º","THOR","NATHAN","LEVY GASPARIAN",{"$f":"24+14+26+19+28+28+24","v":163}]
["6º","PIT BULL","JOÃO MARCOS","AREAL",{"$f":"23+26+20+18+26+30","v":143}]
["7º","REI DA RUA","JONAS","PARAÍBA DO SUL",{"$f":"28+28+23+22+20","v":121}]
["8º","DUBAI","WILLIAM","TRÊS RIOS",{"$f":"13+21+17+30+22","v":103}]
["9º","GAGUINHO","ANDRÉ LUIS","PARAÍBA DO SUL",{"$f":"16+14+17+26+28","v":101}]
["10º","DEGOLADOR","WL/GABRIEL","PARAÍBA DO SUL",{"$f":"20+24+20+23","v":87}]
["11º","TRUQUE","REGINALDO","PETRÓPOLIS",{"$f":"17+23+20+15","v":75}]
["12º","JIRAYA","GABRIEL/LEANDRO","PARAÍBA DO SUL",{"$f":"18+22+23","v":63}]
["13º","MUTANTE","CH/CARLIM","PARAÍBA DO SUL",{"$f":"28+30","v":58}]
["14º","THANOS","SILAS FLÁVIO","TRÊS RIOS",{"$f":"14+23+21","v":58}]
["15º","NEXTEL","NATHAN","LEVY GASPARIAN",{"$f":"13+28+15","v":56}]
["16º","06","GABRIEL/MÁRCIO","PARAÍBA DO SUL",{"$f":"18+18+18","v":54}]
["17º","BOTA CARA","DJ RODRIGO","PARAÍBA DO SUL",{"$f":"22+30","v":52}]
["18º","RAIO","NICOLAS REIS","ITAIPAVA",{"$f":"18+17+16","v":51}]
["19º","MENINO MALUCO","BRUNO","TRÊS RIOS",{"$f":"24+26","v":50}]
["20º","METRALHA","RAUANI VALLE","TRÊS RIOS",{"$f":"13+19+18","v":50}]
["21º","DO BRONX","RAUANI VALLE","TRÊS RIOS",{"$f":"22+26","v":48}]
["22º","FORASTEIRO","WL MINGAL","PARAÍBA DO SUL",{"$f":"14+16+17","v":47}]
["23º","ANIMAL","DANILO MOREIRA","TRÊS RIOS",{"$f":"21+17","v":38}]
["24º","LANCHIM CAMARO","SANDRINHO","TRÊS RIOS",{"$f":"16+19","v":35}]
["25º","ZÉ INÁCIO","GUSTAVO/JHONATAS","PARAÍBA DO SUL",{"$f":"16+19","v":35}]
["26º","EXPRESSO","RAUANI VALLE","TRÊS RIOS",30]
["27º","PÉROLA NEGRA","ROMÁRIO OLIVEIRA","PETRÓPOLIS",30]
["28º","PURO LUXO","MARCÃO","JUIZ DE FORA",30]
["29º","MAGO NEGRO","CLOVIS/RODRIGO","TRÊS RIOS",{"$f":"16+13","v":29}]
["30º","ABUSADO","VAZ","VASSOURAS",28]
["31º","MALIBÚ","PABLO","ITAIPAVA",28]
["32º","URSO NEGRO","JUNINHO PACHECO","TRÊS RIOS",28]
["33º","V10","JUNINHO PACHECO","TRÊS RIOS",28]
["34º","XEQUE-MATE","JHONATAS/GUSTAVO","PARAÍBA DO SUL",28]
["35º","ENIGMA","RODRIGO","PATY DO ALFERES",26]
["36º","PRESTÍGIO","RUAN BARRINHA","PARAÍBA DO SUL",26]
["37º","VINGADOR","JUNINHO","TRÊS RIOS",26]
["38º","EMOÇÃO","KLEBER SILVA","PETRÓPOLIS",24]
["39º","FLECHA","DANILO MOREIRA","TRÊS RIOS",24]
["40º","TENEBROSO","JONAS","TRÊS RIOS",24]
["41º","ALEGRIA","MANDÍBULA","PETRÓPOLIS",23]
["42º","MASSACRE","CABRITO/GABRIEL","MATIAS BARBOSA",23]
["43º","PROMESSA","LISANDRO","VASSOURAS",22]
["44º","TIROTEIO","RAUANI","TRÊS RIOS",22]
["45º","CARA PRETA","LUCAS","MATIAS BARBOSA",21]
["46º","CHARADA","JONAS","TRÊS RIOS",21]
["47º","FAVORITO","CT LIMA","PARAÍBA DO SUL",21]
["48º","MARRETA","GABRIEL","PARAÍBA DO SUL",21]
["49º","PANTERA NEGRA","HENRIQUE","ANTA",21]
["50º","SERPENTE","RODRIGO/BRUNO","PETRÓPOLIS",21]
["51º","CAVIAR","BRUNO","TRÊS RIOS",20]
["52º","MAESTRO","CH FAMÍLIA MINGAL","PARAÍBA DO SUL",20]
["53º","MALVADÃO","FRANÇA","JUIZ DE FORA",20]
["54º","SÍRIA","WILLIAM","TRÊS RIOS",20]
["55º","TROVÃO","ALEXANDRE/ANA CLARA","SOUZA AGUIAR",20]
["56º","WOLVERINE","LISANDRO","VASSOURAS",20]
["57º","BINHA PRETO","EULER","TRÊS RIOS",19]
["58º","CAIPIRA","RODRIGO","PATY DO ALFERES",19]
["59º","CHEQUE-MATE","JHONATAS/GUSTAVO","PARAÍBA DO SUL",19]
["60º","DANONE","GILSON/GUSTAVO","S. DUMONT/TRÊS RIOS",19]
["61º","MATRIX","REGINALDO","PETRÓPOLIS",19]
["62º","SINISTRO","TITO","VASSOURAS",19]
["63º","ZÉ PEQUENO","REINALDO","JUIZ DE FORA",19]
["64º","BELATTOR","RAUANI VALLE","TRÊS RIOS",18]
["65º","GRÃO VIZIR","CICINHO","PARAÍBA DO SUL",18]
["66º","QUE FODA","MANDÍBULA","PETRÓPOLIS",18]
["67º","VENON JÚNIOR","MURILO","TRÊS RIOS",18]
["68º","MAGAYVER","BRUNO LOPES","VASSOURAS",17]
["69º","PAZ O PIX","LUCAS","TRÊS RIOS",17]
["70º","POLVILHO","GILSON/GUSTAVO","SANTOS DUMONT",17]
["71º","ÁGUA SANTA","FAMÍLIA MINGAL","PARAÍBA DO SUL",16]
["72º","ASTRO","FRANÇA","JUIZ DE FORA",16]
["73º","ALMEJADO","DJ RODRIGO","PARAÍBA DO SUL",15]
["74º","B. NEGRO","LUCIANO","JUIZ DE FORA",15]
["75º","BRUXO","CT LIMA","PARAÍBA DO SUL",15]
["76º","FAIXA PRETA","GABRIEL","PARAÍBA DO SUL",15]
["77º","FARAÓ","ANDRÉ LUIS","PARAÍBA DO SUL",15]
["78º","JHON LEMES","LEONARDO","SANTOS DUMONT",15]
["79º","MOHAMED","JOÃO PEDRO","PARAÍBA DO SUL",15]
["80º","COSPE FOGO","ANDRÉ VIEIRA","PETRÓPOLIS",14]
["81º","IPHONE","SILAS FLÁVIO","TRÊS RIOS",14]
["82º","SOBREVIVENTE","WL FAM. MINGAL/J. VITOR","PARAÍBA DO SUL",14]
["83º","VARANDÃO","RAPHAEL","MATIAS BARBOSA",14]
["84º","ZICO","ALEX LAMA","PARAÍBA DO SUL",14]
["85º","AMOSTRADINHO","PAULINHO","TRÊS RIOS",13]
["86º","MALUQUINHO","WELLINTON","AREAL",13]
["87º","RAFAH","UILIAN","TRÊS RIOS",13]
["88º","REI ARTHUR","ALEX LAMA","PARAÍBA DO SUL",13]
["89º","TRÓIA","BRUNO","TRÊS RIOS",13]
["90º","ZIDANE","GUSTAVO/JHONATAS","PARAÍBA DO SUL",13]
["91º"]
["92º"]
["93º"]
["94º"]
["95º"]
["96º"]
["97º"]
["98º"]
["99º"]
["100º"]

{"sheet":"jan2026","index":1,"n_rows":47,"n_cols":27,"rows_kept":47,"cut":false,"hidden":false,"merged":[[0,0,0,5],[0,7,0,12],[0,14,0,19],[0,21,0,26]]}
["07/01/2026 (QUARTA-FEIRA)",null,null,null,null,null,null,"14/01/2026 (QUARTA-FEIRA)",null,null,null,null,null,null,"21/01/2026 (QUARTA-FEIRA)",null,null,null,null,null,null,"28/01/2026 (QUARTA-FEIRA)"]
["POS.","PÁSSARO","PROPRIETÁRIO","ORIGEM","CANTOS","PONTOS",null,"POS.","PÁSSARO","PROPRIETÁRIO","ORIGEM","CANTOS","PONTOS",null,"POS.","PÁSSARO","PROPRIETÁRIO","ORIGEM","CANTOS","PONTOS",null,"POS.","PÁSSARO","PROPRIETÁRIO","ORIGEM","CANTOS","PONTOS"]
["1º","EXPRESSO","RAUANI VALLE","TRÊS RIOS",203,30,null,"1º","É O AÇO","RODRIGO","VASSOURAS",316,30,null,"1º","É O AÇO","RODRIGO","VASSOURAS",245,30,null,"1º","É O AÇO","RODRIGO","VASSOURAS",253,30]
["2º","REI DA RUA","ANDRÉ LUIS","PARAÍBA DO SUL",202,28,null,"2º","REI DA RUA","ANDRÉ LUIS","PARAÍBA DO SUL",166,28,null,"2º","ABUSADO","VAZ","VASSOURAS",199,28,null,"2º","V10","JUNINHO PACHECO","TRÊS RIOS",184,28]
["3º","FOGUETE","LEANDRO/GABRIEL","PARAÍBA DO SUL",199,26,null,"3º","PRESTÍGIO","RUAN BARRINHA","PARAÍBA DO SUL",163,26,null,"3º","ROMÁRIO","CH FAMÍLIA MINGAL","PARAÍBA DO SUL",198,26,null,"3º","PITBULL","JOÃO MARCOS","AREAL",167,26]
["4º","THOR","NATHAN","LEVY GASPARIAN",194,24,null,"4º","ROMÁRIO","CH FAMÍLIA MINGAL","PARAÍBA DO SUL",151,24,null,"4º","PANTERA NEGRA","PABLO","ITAIPAVA",156,24,null,"4º","TENEBROSO","JONAS","TRÊS RIOS",165,24]
["5º","PIT BULL","JOÃO MARCOS","AREAL",193,23,null,"5º","TRUQUE","REGINALDO","PETRÓPOLIS",147,23,null,"5º","REI DA RUA","ANDRÉ LUIS","PARAÍBA DO SUL",156,23,null,"5º","FOGUETE","GABRIEL/LEANDRO","PARAÍBA DO SUL",162,23]
["6º","PANTERA NEGRA","PABLO","ITAIPAVA",187,22,null,"6º","PANTERA NEGRA","PABLO","ITAIPAVA",147,22,null,"6º","JIRAYA","GABRIEL/THIAGO","PARAÍBA DO SUL",155,22,null,"6º","REI DA RUA","ANDRÉ LUIS","PARAÍBA DO SUL",162,22]
["7º","SERPENTE","RODRIGO/BRUNO","PETRÓPOLIS",183,21,null,"7º","ANIMAL","DANILO MOREIRA","TRÊS RIOS",144,21,null,"7º","PANTERA NEGRA","HENRIQUE","ANTA",147,21,null,"7º","MARRETA","GABRIEL","PARAÍBA DO SUL",152,21]
["8º","MAESTRO","CH FAMÍLIA MINGAL","PARAÍBA DO SUL",160,20,null,"8º","CAVIAR","BRUNO","TRÊS RIOS",142,20,null,"8º","TRUQUE","REGINALDO","PETRÓPOLIS",135,20,null,"8º","WOLVERINE","LISANDRO","VASSOURAS",152,20]
["9º","ROMÁRIO","CH FAMÍLIA MINGAL","PARAÍBA DO SUL",160,19,null,"9º","DANONE","GILSON/GUSTAVO","S. DUMONT/TRÊS RIOS",136,19,null,"9º","CHEQUE-MATE","JHONATAS/GUSTAVO","PARAÍBA DO SUL",131,19,null,"9º","SINISTRO","TITO","VASSOURAS",146,19]
["10º","QUE FODA","MANDÍBULA","PETRÓPOLIS",152,18,null,"10º","JIRAYA","GABRIEL/THIAGO","PARAÍBA DO SUL",135,18,null,"10º","BELATTOR","RAUANI VALLE","TRÊS RIOS",119,18,null,"10º","VENON JÚNIOR","MURILO","TRÊS RIOS",145,18]
["11º","TRUQUE","REGINALDO","PETRÓPOLIS",150,17,null,"11º","PAZ O PIX","LUCAS","TRÊS RIOS",135,17,null,"11º","FOGUETE","LEANDRO/GABRIEL","PARAÍBA DO SUL",113,17,null,"11º","PANTERA NEGRA","PABLO","ITAIPAVA",143,17]
["12º","ÁGUA SANTA","FAMÍLIA MINGAL","PARAÍBA DO SUL",147,16,null,"12º","MAGO NEGRO","CLOVIS/RODRIGO","TRÊS RIOS",130,16,null,"12º","ZÉ INÁCIO","GUSTAVO/JHONATAS","PARAÍBA DO SUL",103,16,null,"12º","ROMÁRIO","CH FAMÍLIA MINGAL","PARAÍBA DO SUL",139,16]
["13º","MOHAMED","JOÃO PEDRO","PARAÍBA DO SUL",147,15,null,"13º","JHON LEMES","LEONARDO","SANTOS DUMONT",126,15,null,"13º","BRUXO","CT LIMA","PARAÍBA DO SUL",100,15,null,"13º","ALMEJADO","DJ RODRIGO","PARAÍBA DO SUL",134,15]
["14º","VARANDÃO","RAPHAEL","MATIAS BARBOSA",142,14,null,"14º","GAGUINHO","JONAS","TRÊS RIOS",125,14,null,"14º","THOR","NATHAN","LEVY GASPARIAN",100,14,null,"14º","THANOS","SILAS","TRÊS RIOS",130,14]
["15º","TRÓIA","BRUNO","TRÊS RIOS",141,13,null,"15º","NEXTEL","NATHAN","LEVY GASPARIAN",118,13,null,"15º","DUBAI","WILLIAM","TRÊS RIOS",100,13,null,"15º","METRALHA","RAUANI VALLE","TRÊS RIOS",130,13]
["16º","FORASTEIRO","WL FAMÍLIA MINGAL","PARAÍBA DO SUL",140,null,null,"16º","BMW","JOÃO PEDRO","PARAÍBA DO SUL",111,null,null,"16º","BIG MONEY","ADLER OLIVEIRA","AREAL",98,null,null,"16º","TRUQUE","REGINALDO","PETRÓPOLIS",129]
["17º","RABO DE PEIXE","LUCIMAR/LUÍS HENRIQUE","TRÊS RIOS",137,null,null,"17º","DIMENOR","LEONARDO","PARAÍBA DO SUL",109,null,null,"17º","AMOSTRADINHO","PAULINHO","TRÊS RIOS",96,null,null,"17º","BAIXARIA","FAMÍLIA HONORATO","PARAÍBA DO SUL",120]
["18º","MENINO DO MORRO","GABRIEL/VLADIMIR","PARAÍBA DO SUL",130,null,null,"18º","ÁGUA SANTA","FAM. MINGAL/MATHEUS","PARAÍBA DO SUL",108,null,null,"18º","CHARADA","KLEBER SILVA","PETRÓPOLIS",91,null,null,"18º","FORASTEIRO","WL FAM. MINGAL/GABRIEL","PARAÍBA DO SUL",120]
["19º","EL DOIDO","FÁBIO","PETRÓPOLIS",127,null,null,"19º","GIBA","SANDRINHO","TRÊS RIOS",105,null,null,"19º","FÚRIA","LUCAS ALVES","ITAIPAVA",91,null,null,"19º","PIT BULL","HENRIQUE","ANTA",117]
["20º","DANONE","GILSON/GUSTAVO","SANTOS DUMONT/TRÊS RIOS",122,null,null,"20º","CHARADA","KLEBER SILVA","PETRÓPOLIS",100,null,null,"20º","PROFESSOR","RAUANI VALLE","TRÊS RIOS",88,null,null,"20º","THOR","NATHAN","LEVY GASPARIAN",104]
["21º","GARGALHADA","CICINHO","PARAÍBA DO SUL",119,null,null,"21º","MASSACRE","LÁZARO","PARAÍBA DO SUL",100,null,null,"21º","BELGA","JONAS","PETRÓPOLIS",71,null,null,"21º","ROYAL SALUTE","JOÃO PEDRO","VASSOURAS",102]
["22º","BALINHA","WL FAMÍLIA MINGAL","PARAÍBA DO SUL",116,null,null,"22º","PRESTINHA","EULER","TRÊS RIOS",88,null,null,"22º","01","CT LIMA","PARAÍBA DO SUL",64,null,null,"22º","QUE FODA","MANDÍBULA","PETRÓPOLIS",94]
["23º","PELÉ","WILLIAM","TRÊS RIOS",110,null,null,"23º","THANOS","SILAS","TRÊS RIOS",87,null,null,null,null,null,null,null,null,null,"23º","RENEGADO","HENRIQUE","ANTA",88]
["24º","ARCANJO","FAMÍLIA MINGAL/MATHEUS","PARAÍBA DO SUL",106,null,null,"24º","SINISTRO","ANDRÉ FREITAS","PETRÓPOLIS",85,null,null,null,null,null,null,null,null,null,"24º","BISTURI","FELIPE","MIGUEL PEREIRA",87]
["25º","MATUÊ","LOIRINHO/DOMINGOS","PARAÍBA DO SUL",105,null,null,"25º","AMOSTRADINHO","GABRIEL MARTINS","PARAÍBA DO SUL",77,null,null,null,null,null,null,null,null,null,"25º","JOGADOR","FELIPE","MIGUEL PEREIRA",85]
["26º","RENEGADO","GABRIEL","PETRÓPOLIS",103,null,null,"26º","DIFERENTE","ITALLO","PARAÍBA DO SUL",60,null,null,null,null,null,null,null,null,null,"26º","MASSACRE","HENRIQUE","PARAÍBA DO SUL",82]
["27º","JAMELÃO","CH FAMÍLIA MINGAL","PARAÍBA DO SUL",103,null,null,"27º","RENEGADO","HENRIQUE","ANTA",48,null,null,null,null,null,null,null,null,null,"27º","FRANÇA","MANDÍBULA","PETRÓPOLIS",79]
["28º","MAGO NEGRO","CLOVIS/RODRIGO","TRÊS RIOS",102,null,null,"28º","RAJADA","BRUNO","ITAIPAVA",37,null,null,null,null,null,null,null,null,null,"28º","PIX","?","TRÊS RIOS",78]
["29º","PETER PAN","GABRIEL MARTINS","PARAÍBA DO SUL",100,null,null,"29º","MAGISTRAL","REGINALDO","PETRÓPOLIS",35,null,null,null,null,null,null,null,null,null,"29º","AZULÃOZINHO","RAFAEL","PARAÍBA DO SUL",77]
["30º","MAGISTRAL","REGINALDO","PETRÓPOLIS",99,null,null,"30º","CALMA CALABRESO","CLOVIS/RODRIGO","TRÊS RIOS",21,null,null,null,null,null,null,null,null,null,"30º","RAIO","RAUANI VALLE","TRÊS RIOS",71]
["31º","DELEGADO","RODRIGO/BRUNO","PETRÓPOLIS",99,null,null,null,null,null,null,null,null,null,null,null,null,null,null,null,null,"31º","RET","THIAGO/RONYELLE","TRÊS RIOS",71]
["32º","CORINGA","FAMÍLIA MINGAL/CT LIMA","PARAÍBA DO SUL",94,null,null,null,null,null,null,null,null,null,null,null,null,null,null,null,null,"32º","ABRAÃO","RICHARDSON","LEVY GASPARIAN",65]
["33º","GUERREIRO","VITOR","PARAÍBA DO SUL",94,null,null,null,null,null,null,null,null,null,null,null,null,null,null,null,null,"33º","PANTERA NEGRA","RATINHO","VALENÇA",64]
["34º","GIBA","SANDRINHO","TRÊS RIOS",94,null,null,null,null,null,null,null,null,null,null,null,null,null,null,null,null,"34º","FARRAPO DOIDO","MANDÍBULA","PETRÓPOLIS",60]
["35º","TAXI NETO","RAFAEL","PARAÍBA DO SUL",93,null,null,null,null,null,null,null,null,null,null,null,null,null,null,null,null,"35º","FANTÁSTICO","EDUARDO","TRÊS RIOS",33]
["36º","CARA PRETA","RAFAEL DE SOUZA","PARAÍBA DO SUL",91]
["37º","PINOTE","JONATAS","MATIAS BARBOSA",90]
["38º","&CHARADA","ANDRÉ FREITAS","PETRÓPOLIS",85]
["39º","FANTÁSTICO","EDUARDO","TRÊS RIOS",85]
["40º","ANIMAL","DANILO MOREIRA","TRÊS RIOS",81]
["41º","RENEGADO","HENRIQUE","ANTA",79]
["42º","XODÓ","CLOVIS/RODRIGO","TRÊS RIOS",64]
["43º","FÚRIA","FABIANO","TRÊS RIOS",56]
["44º","PESADELO","HENRIQUE","ANTA",50]
["45º","NINGUÉM QUIZ","MANDÍBULA","PETRÓPOLIS",21]

{"sheet":"fev2026","index":2,"n_rows":32,"n_cols":28,"rows_kept":32,"cut":false,"hidden":false,"merged":[[0,0,0,6],[0,8,0,13],[0,15,0,20],[0,22,0,27]]}
["04/02/2026 (QUARTA-FEIRA)",null,null,null,null,null,null,null,"11/02/2026 (QUARTA-FEIRA)",null,null,null,null,null,null,"18/02/2026 (QUARTA-FEIRA)",null,null,null,null,null,null,"25/02/2026 (QUARTA-FEIRA)"]
["POS.","PÁSSARO","PROPRIETÁRIO","ORIGEM","VASS.","CANTOS","PONTOS",null,"POS.","PÁSSARO","PROPRIETÁRIO","ORIGEM","CANTOS","PONTOS",null,"POS.","PÁSSARO","PROPRIETÁRIO","ORIGEM","CANTOS","PONTOS",null,"POS.","PÁSSARO","PROPRIETÁRIO","ORIGEM","CANTOS","PONTOS"]
["1º","PURO LUXO","MARCÃO","JUIZ DE FORA",247,294,30,null,"1º","PÉROLA NEGRA","ROMÁRIO OLIVEIRA","PETRÓPOLIS",202,30,null,"1º","DUBAI","WILLIAM","TRÊS RIOS",200,30,null,"1º","É O AÇO","RODRIGO","VASSOURAS",301,30]
["2º","NEXTEL","NATHAN","LEVY GASPARIAN",86,208,28,null,"2º","URSO NEGRO","JUNINHO PACHECO","TRÊS RIOS",191,28,null,"2º","XEQUE-MATE","JHONATAS/GUSTAVO","PARAÍBA DO SUL",176,28,null,"2º","THOR","NATHAN","LEVY GASPARIAN",191,28]
["3º","FOGUETE","GABRIEL/LEANDRO","PARAÍBA DO SUL",121,185,26,null,"3º","THOR","NATHAN","LEVY GASPARIAN",189,26,null,"3º","DO BRONX","RAUANI VALLE","TRÊS RIOS",172,26,null,"3º","GAGUINHO","ANDRÉ LUIS","PARAÍBA DO SUL",170,26]
["4º","EMOÇÃO","KLEBER SILVA","PETRÓPOLIS",63,177,24,null,"4º","ROMÁRIO","CH FAMÍLIA MINGAL","PARAÍBA DO SUL",182,24,null,"4º","MENINO MALUCO","BRUNO","TRÊS RIOS",171,24,null,"4º","PANTERA NEGRA","PABLO","ITAIPAVA",164,24]
["5º","PANTERA NEGRA","PABLO","ITAIPAVA",134,172,23,null,"5º","ALEGRIA","MANDÍBULA","PETRÓPOLIS",181,23,null,"5º","JIRAYA","GABRIEL/LEANDRO","PARAÍBA DO SUL",164,23,null,"5º","THANOS","SILAS FLÁVIO","TRÊS RIOS",163,23]
["6º","PROMESSA","LISANDRO","VASSOURAS",153,170,22,null,"6º","DO BRONX","RAUANI VALLE","TRÊS RIOS",176,22,null,"6º","TIROTEIO","RAUANI","TRÊS RIOS",164,22,null,"6º","BOTA CARA","DJ RODRIGO","PARAÍBA DO SUL",132,22]
["7º","DUBAI","WILHAN","TRÊS RIOS",131,168,21,null,"7º","FOGUETE","LEANDRO/GABRIEL","PARAÍBA DO SUL",173,21,null,"7º","CARA PRETA","LUCAS","MATIAS BARBOSA",158,21,null,"7º","FAVORITO","CT LIMA","PARAÍBA DO SUL",130,21]
["8º","PIT BULL","JOÃO MARCOS","AREAL",116,168,20,null,"8º","REI DA RUA","JONAS","TRÊS RIOS",168,20,null,"8º","PANTERA NEGRA","PABLO","ITAIPAVA",155,20,null,"8º","DEGOLADOR","WL/GABRIEL","PARAÍBA DO SUL",123,20]
["9º","CAIPIRA","RODRIGO","PATY DO ALFERES",121,157,19,null,"9º","METRALHA","RAUANI VALLE","TRÊS RIOS",162,19,null,"9º","THOR","NATHAN","LEVY GASPARIAN",144,19,null,"9º","ZÉ INÁCIO","GUSTAVO/JHONATAS","PARAÍBA DO SUL",123,19]
["10º","ROMÁRIO","CH MINGAL","-",73,156,18,null,"10º","PITBULL","JOÃO MARCOS","AREAL",159,18,null,"10º","METRALHA","RAUANI","TRÊS RIOS",144,18,null,"10º","RAIO","NICOLAS","ITAIPAVA",114,18]
["11º","ANIMAL","DANILO","TRÊS RIOS",93,141,17,null,"11º","DUBAI","WILLIAM","TRÊS RIOS",157,17,null,"11º","GAGUINHO","ANDRÉ LUIS","PARAÍBA DO SUL",140,17,null,"11º","MAGAYVER","BRUNO LOPES","VASSOURAS",113,17]
["12º","ASTRO","FRANÇA","JUIZ DE FORA",71,140,16,null,"12º","GAGUINHO","ANDRÉ LUIS","PARAÍBA DO SUL",154,16,null,"12º","ROMÁRIO","CH FAMÍLIA MINGAL","PARAÍBA DO SUL",139,16,null,"12º","LANCHIM CAMARO","SANDRINHO","TRÊS RIOS",110,16]
["13º","TRUQUE","REGINALDO","PETRÓPOLIS",120,132,15,null,"13º","FARAÓ","ANDRÉ LUIS","PARAÍBA DO SUL",131,15,null,"13º","FAIXA PRETA","GABRIEL","PARAÍBA DO SUL",128,15,null,"13º","ROMÁRIO","CH FAMÍLIA MINGAL","PARAÍBA DO SUL",104,15]
["14º","FORASTEIRO","WL MINGAL","-",134,130,14,null,"14º","SOBREVIVENTE","WL FAM. MINGAL/J. VITOR","PARAÍBA DO SUL",130,14,null,"14º","COSPE FOGO","ANDRÉ VIEIRA","PETRÓPOLIS",127,14,null,"14º","ZICO","ALEX LAMA","PARAÍBA DO SUL",104,14]
["15º","AMOSTRADINHO","PAULINHO","TRÊS RIOS",85,125,13,null,"15º","MALUQUINHO","WELLINTON","AREAL",125,13,null,"15º","RAFAH","UILIAN","TRÊS RIOS",125,13,null,"15º","MAGO NEGRO","CLOVIS/RODRIGO","TRÊS RIOS",104,13]
["16º","THOR","NATHAN","LEVY",131,119,null,null,"16º","TRUQUE","REGINALDO","PETRÓPOLIS",111,null,null,"16º","007","GUSTAVO/RAYANE","PARAÍBA DO SUL",99,null,null,"16º","FOGUETE","LEANDRO/GABRIEL","PARAÍBA DO SUL",95]
["17º","PATENTE ALTA","ALEX LAMA","PARAÍBA DO SUL",80,115,null,null,"17º","EMOÇÃO","KLEBER SILVA","PETRÓPOLIS",111,null,null,"17º","BLACK","PABLO","PETRÓPOLIS",82,null,null,"17º","METE BALA","ADEILDO","SÃO JOSÉ",91]
["18º","SINISTRO","LUCAS","TRÊS RIOS",82,114,null,null,"18º","THANOS","SILAS FLÁVIO","TRÊS RIOS",111,null,null,"18º","RENEGADO","ARTUR","TRÊS RIOS",60,null,null,"18º","MÁSCARA","REGINALDO","PETRÓPOLIS",65]
["19º","DO BRONX","RAUANI","TRÊS RIOS",103,111,null,null,"19º","ROCK","SAULO","TRÊS RIOS",110,null,null,"19º",null,null,null,null,null,null,"19º","ZUMBI","CLOVIS/RODRIGO","TRÊS RIOS",57]
["20º","MARRUÁ","FELIPE","-",54,109,null,null,"20º","AMOSTRADINHO","PAULINHO","TRÊS RIOS",105,null,null,"20º",null,null,null,null,null,null,"20º","RAMBO","HENRIQUE","ANTA",27]
["21º","CALMA CALABRESO","CLÓVIS/RODRIGO","-",99,96,null,null,"21º","MASSACRE","HENRIQUE","PARAÍBA DO SUL",100,null,null,"21º",null,null,null,null,null,null,"21º"]
["22º","SINTONIA","VINÍCIUS","VASSOURAS",80,91,null,null,"22º","NEXTEL","NATHAN","LEVY GASPARIAN",95,null,null,"22º",null,null,null,null,null,null,"22º"]
["23º","007","GUSTAVO/RAYANE","PARAÍBA DO SUL",58,90,null,null,"23º","BIPOLAR","ALIF","LEVY GASPARIAN",56,null,null,"23º",null,null,null,null,null,null,"23º"]
["24º","RAIO","NICOLAS REIS","ITAIPAVA",115,85,null,null,"24º","SONIC","RAFAEL","PARAÍBA DO SUL",55,null,null,"24º",null,null,null,null,null,null,"24º"]
["25º","ARCANJO","GUSTAVO","VALENÇA",70,64,null,null,"25º","DIVINO","PEDRO VITOR","VASSOURAS",35,null,null,"25º",null,null,null,null,null,null,"25º"]
["26º",null,null,null,null,null,null,null,"26º",null,null,null,null,null,null,"26º",null,null,null,null,null,null,"26º"]
["27º",null,null,null,null,null,null,null,"27º",null,null,null,null,null,null,"27º",null,null,null,null,null,null,"27º"]
["28º",null,null,null,null,null,null,null,"28º",null,null,null,null,null,null,"28º",null,null,null,null,null,null,"28º"]
["29º",null,null,null,null,null,null,null,"29º",null,null,null,null,null,null,"29º",null,null,null,null,null,null,"29º"]
["30º",null,null,null,null,null,null,null,"30º",null,null,null,null,null,null,"30º",null,null,null,null,null,null,"30º"]

{"sheet":"mar2026","index":3,"n_rows":32,"n_cols":27,"rows_kept":32,"cut":false,"hidden":false,"merged":[[0,0,0,5],[0,7,0,12],[0,14,0,19],[0,21,0,26]]}
["04/03/2026 (QUARTA-FEIRA)",null,null,null,null,null,null,"11/03/2026 (QUARTA-FEIRA)",null,null,null,null,null,null,"18/03/2026 (QUARTA-FEIRA)",null,null,null,null,null,null,"25/03/2026 (QUARTA-FEIRA)"]
["POS.","PÁSSARO","PROPRIETÁRIO","ORIGEM","CANTOS","PONTOS",null,"POS.","PÁSSARO","PROPRIETÁRIO","ORIGEM","CANTOS","PONTOS",null,"POS.","PÁSSARO","PROPRIETÁRIO","ORIGEM","CANTOS","PONTOS",null,"POS.","PÁSSARO","PROPRIETÁRIO","ORIGEM","CANTOS","PONTOS"]
["1º","É O AÇO","RODRIGO","VASSOURAS",235,30,null,"1º","BOTA CARA","DJ RODRIGO","PARAÍBA DO SUL",186,30,null,"1º","PITBULL","JOÃO MARCOS","AREAL",191,30,null,"1º","MUTANTE","CH/CARLIM","PARAÍBA DO SUL",224,30]
["2º","MUTANTE","CH/CARLIM","PARAÍBA DO SUL",205,28,null,"2º","THOR","NATHAN","LEVY GASPARIAN",179,28,null,"2º","GAGUINHO","ANDRÉ LUIS","PARAÍBA DO SUL",178,28,null,"2º","MALIBÚ","PABLO","ITAIPAVA",201,28]
["3º","MENINO MALUCO","BRUNO","TRÊS RIOS",168,26,null,"3º","PIT BULL","JOÃO MARCOS","AREAL",167,26,null,"3º","VINGADOR","JUNINHO","TRÊS RIOS",176,26,null,"3º","ENIGMA","RODRIGO","PATY DO ALFERES",180,26]
["4º","DEGOLADOR","GABRIEL/WL FAMÍLIA MINGAL","PARAÍBA DO SUL",143,24,null,"4º","PANTERA NEGRA","PABLO","ITAIPAVA",164,24,null,"4º","FLECHA","DANILO MOREIRA","TRÊS RIOS",174,24,null,"4º","THOR","NATHAN","LEVY GASPARIAN",175,24]
["5º","FOGUETE","LEANDRO/GABRIEL","PARAÍBA DO SUL",140,23,null,"5º","ROMÁRIO","CH FAMÍLIA MINGAL","PARAÍBA DO SUL",154,23,null,"5º","MASSACRE","CABRITO/GABRIEL","MATIAS BARBOSA",151,23,null,"5º","DEGOLADOR","W.L/GABRIEL","PARAÍBA DO SUL",165,23]
["6º","PANTERA NEGRA","PABLO","ITAIPAVA",137,22,null,"6º","É O AÇO","RODRIGO","VASSOURAS",152,22,null,"6º","DUBAI","WILLIAM","TRÊS RIOS",147,22,null,"6º","PANTERA NEGRA","PABLO","ITAIPAVA",160,22]
["7º","CHARADA","JONAS","TRÊS RIOS",134,21,null,"7º","FOGUETE","LEANDRO/GABRIEL","PARAÍBA DO SUL",136,21,null,"7º","PANTERA NEGRA","PABLO","ITAIPAVA",142,21,null,"7º","THANOS","SILAS","TRÊS RIOS",135,21]
["8º","SÍRIA","WILLIAM","TRÊS RIOS",130,20,null,"8º","DEGOLADOR","WL/GABRIEL","PARAÍBA DO SUL",131,20,null,"8º","MALVADÃO","FRANÇA","JUIZ DE FORA",129,20,null,"8º","TROVÃO","ALEXANDRE/ANA CLARA","SOUZA AGUIAR",130,20]
["9º","LANCHIM CAMARO","SANDRINHO","TRÊS RIOS",130,19,null,"9º","BINHA PRETO","EULER","TRÊS RIOS",128,19,null,"9º","ZÉ PEQUENO","REINALDO","JUIZ DE FORA",121,19,null,"9º","MATRIX","REGINALDO","PETRÓPOLIS",97,19]
["10º","06","GABRIEL/PAIVA","PARAÍBA DO SUL",120,18,null,"10º","06","GABRIEL/PAIVA","PARAÍBA DO SUL",120,18,null,"10º","06","GABRIEL/MÁRCIO","PARAÍBA DO SUL",119,18,null,"10º","GRÃO VIZIR","CICINHO","PARAÍBA DO SUL",88,18]
["11º","ROMÁRIO","CH FAMÍLIA MINGAL","PARAÍBA DO SUL",118,17,null,"11º","RAIO","NICOLAS REIS","ITAIPAVA",116,17,null,"11º","FORASTEIRO","WL FAM. MINGAL/GABRIEL","PARAÍBA DO SUL",116,17,null,"11º","POLVILHO","GILSON/GUSTAVO","SANTOS DUMONT",82,17]
["12º",null,null,null,null,null,null,"12º","FORASTEIRO","GABRIEL/WL FAMÍLIA MINGAL","PARAÍBA DO SUL",115,16,null,"12º","RAIO","NICOLAS","ITAIPAVA",109,16,null,"12º","06","GABRIEL PAIVA","PARAÍBA DO SUL",15]
["13º",null,null,null,null,null,null,"13º","NEXTEL","NATHAN","LEVY GASPARIAN",80,15,null,"13º","B. NEGRO","LUCIANO","JUIZ DE FORA",103,15,null,"13º"]
["14º",null,null,null,null,null,null,"14º","IPHONE","SILAS FLÁVIO","TRÊS RIOS",69,14,null,"14º","FOGUETE","LEANDRO/GABRIEL","PARAÍBA DO SUL",90,14,null,"14º"]
["15º",null,null,null,null,null,null,"15º","REI ARTHUR","ALEX LAMA","PARAÍBA DO SUL",66,13,null,"15º","ZIDANE","GUSTAVO/JHONATAS","PARAÍBA DO SUL",82,13,null,"15º"]
["16º",null,null,null,null,null,null,"16º","RAMBO","HENRIQUE","ANTA",56,null,null,"16º",null,null,null,null,null,null,"16º"]
["17º",null,null,null,null,null,null,"17º",null,null,null,null,null,null,"17º",null,null,null,null,null,null,"17º"]
["18º",null,null,null,null,null,null,"18º",null,null,null,null,null,null,"18º",null,null,null,null,null,null,"18º"]
["19º",null,null,null,null,null,null,"19º",null,null,null,null,null,null,"19º",null,null,null,null,null,null,"19º"]
["20º",null,null,null,null,null,null,"20º",null,null,null,null,null,null,"20º",null,null,null,null,null,null,"20º"]
["21º",null,null,null,null,null,null,"21º",null,null,null,null,null,null,"21º",null,null,null,null,null,null,"21º"]
["22º",null,null,null,null,null,null,"22º",null,null,null,null,null,null,"22º",null,null,null,null,null,null,"22º"]
["23º",null,null,null,null,null,null,"23º",null,null,null,null,null,null,"23º",null,null,null,null,null,null,"23º"]
["24º",null,null,null,null,null,null,"24º",null,null,null,null,null,null,"24º",null,null,null,null,null,null,"24º"]
["25º",null,null,null,null,null,null,"25º",null,null,null,null,null,null,"25º",null,null,null,null,null,null,"25º"]
["26º",null,null,null,null,null,null,"26º",null,null,null,null,null,null,"26º",null,null,null,null,null,null,"26º"]
["27º",null,null,null,null,null,null,"27º",null,null,null,null,null,null,"27º",null,null,null,null,null,null,"27º"]
["28º",null,null,null,null,null,null,"28º",null,null,null,null,null,null,"28º",null,null,null,null,null,null,"28º"]
["29º",null,null,null,null,null,null,"29º",null,null,null,null,null,null,"29º",null,null,null,null,null,null,"29º"]
["30º",null,null,null,null,null,null,"30º",null,null,null,null,null,null,"30º",null,null,null,null,null,null,"30º"]